fUSD/lending_fUSD_20260527
["ID","MTS","AMOUNT","RATE_DAILY","PERIOD"]
[423148620,1779893652000,-500.0,0.00017899,2]
[423148608,1779893652000,-738.77,0.00017163,2]
[423148609,1779893652000,-500.0,0.00017191,2]
[423148616,1779893652000,-823.0,0.00017792,2]
[423148617,1779893652000,-402.79528703,0.00017899,2]
[423148618,1779893652000,-426.43708183,0.00017899,2]
[423148619,1779893652000,-500.0,0.00017899,2]
[423148605,1779893652000,-489.0,0.00016767,2]
[423148612,1779893652000,-500.0,0.00017465,2]
[423148628,1779893652000,-500.0,0.00018013,2]
[423148611,1779893652000,-1580.45858688,0.00017443,2]
[423148626,1779893652000,-9704.09369479,0.000179,2]
[423148629,1779893652000,-166.63,0.0001817,2]
[423148625,1779893652000,-13562.93282209,0.000179,2]
[423148624,1779893652000,-16242.29432648,0.000179,2]
[423148631,1779893652000,-12228.45,0.00018356,2]
[423148621,1779893652000,-500.0,0.00017899,2]
[423148613,1779893652000,-500.0,0.00017676,2]
[423148615,1779893652000,-500.0,0.00017739,2]
[423148610,1779893652000,-166.63,0.00017213,2]
[423148614,1779893652000,-500.0,0.00017676,2]
[423148622,1779893652000,-500.0,0.00017899,2]
[423148690,1779893653000,-1254.41808677,0.00022456,2]
[423148689,1779893653000,-5938.19658449,0.00022456,2]
[423148688,1779893653000,-500.0,0.00022252,2]
[423148681,1779893653000,-186.0,0.00022,2]
[423148683,1779893653000,-784.0,0.00022,2]
[423148686,1779893653000,-435.54202836,0.00022252,2]
[423148685,1779893653000,-2000.0,0.0002207,2]
[423148682,1779893653000,-168.0,0.00022,2]
[423148687,1779893653000,-500.0,0.00022252,2]
[423148695,1779893653000,-2774.99502874,0.00022456,2]
[423148692,1779893653000,-151.0,0.00022456,2]
[423148694,1779893653000,-641.8503,0.00022456,2]
[423148693,1779893653000,-500.0,0.00022252,2]
[423148696,1779893653000,-1905.66,0.00022466,2]
[423148697,1779893653000,-749.01,0.00022466,2]
[423148698,1779893653000,-1580.45858688,0.00022532,2]
[423148691,1779893653000,-347.0,0.00022456,2]
[423148699,1779893653000,-164.39006705,0.000229,2]
[423148684,1779893653000,-187.0,0.00022,2]
[423148680,1779893653000,-175.0,0.00022,2]
[423148662,1779893653000,-175.0,0.00021,2]
[423148674,1779893653000,-13135.69,0.00021782,2]
[423148704,1779893653000,-186.0,0.00023,2]
[423148666,1779893653000,-154.0,0.00021,2]
[423148667,1779893653000,-784.0,0.00021,2]
[423148659,1779893653000,-2000.0,0.00020231,2]
[423148663,1779893653000,-175.0,0.00021,2]
[423148660,1779893653000,-500.0,0.00020488,2]
[423148664,1779893653000,-186.0,0.00021,2]
[423148661,1779893653000,-501.4576724,0.00020488,2]
[423148665,1779893653000,-156.0,0.00021,2]
[423148668,1779893653000,-187.0,0.00021,2]
[423148670,1779893653000,-489.0,0.00021205,2]
[423148671,1779893653000,-1613.0,0.00021376,2]
[423148669,1779893653000,-166.63,0.00021038,2]
[423148672,1779893653000,-549.42917282,0.00021486,2]
[423148677,1779893653000,-166.63,0.00021995,2]
[423148679,1779893653000,-175.0,0.00022,2]
[423148673,1779893653000,-323.47345239,0.00021486,2]
[423148678,1779893653000,-450.0,0.00022,2]
[423148676,1779893653000,-5000.0,0.00021918,2]
[423148675,1779893653000,-330.0,0.00021891,4]
[423148703,1779893653000,-175.0,0.00023,2]
[423148700,1779893653000,-166.63,0.00022951,2]
[423148737,1779893653000,-330.0,0.0002712,8]
[423148724,1779893653000,-181.0,0.00025,2]
[423148726,1779893653000,-199.0,0.00025,2]
[423148728,1779893653000,-192.54272136,0.00025,2]
[423148730,1779893653000,-1580.45858688,0.00025077,2]
[423148731,1779893653000,-506.0,0.00025082,2]
[423148732,1779893653000,-21760.83111114,0.00025246,2]
[423148734,1779893653000,-550.0,0.00026,2]
[423148735,1779893653000,-500.0,0.00026,2]
[423148738,1779893653000,-21760.83111114,0.00027258,2]
[423148739,1779893653000,-1000.0,0.00027262,2]
[423148736,1779893653000,-506.0,0.00026854,3]
[423148741,1779893653000,-171.55,0.00027397,8]
[423148740,1779893653000,-1500.0,0.00027397,2]
[423148743,1779893653000,-2266.31,0.00027397,10]
[423148744,1779893653000,-2266.19,0.000274,2]
[423148742,1779893653000,-279.03,0.00027397,2]
[423148745,1779893653000,-156.13,0.00027471,7]
[423148746,1779893653000,-150.0,0.00027521,2]
[423148701,1779893653000,-161.7367262,0.0002296,2]
[423148727,1779893653000,-788.98581358,0.00025,2]
[423148725,1779893653000,-180.0,0.00025,2]
[423148733,1779893653000,-489.0,0.00025644,2]
[423148723,1779893653000,-198.52,0.00024658,2]
[423148705,1779893653000,-784.0,0.00023,2]
[423148702,1779893653000,-175.0,0.00023,2]
[423148706,1779893653000,-187.0,0.00023,2]
[423148708,1779893653000,-1240.0,0.00023431,2]
[423148722,1779893653000,-156.13,0.00024658,2]
[423148713,1779893653000,-175.0,0.00024,2]
[423148709,1779893653000,-5939.94,0.00023565,2]
[423148710,1779893653000,-150.0,0.00023683,2]
[423148717,1779893653000,-187.0,0.00024,2]
[423148716,1779893653000,-784.0,0.00024,2]
[423148707,1779893653000,-311.812576,0.00023094,14]
[423148711,1779893653000,-191.01081584,0.00023683,2]
[423148715,1779893653000,-186.0,0.00024,2]
[423148714,1779893653000,-175.0,0.00024,2]
[423148719,1779893653000,-171.55,0.00024658,2]
[423148729,1779893653000,-171.19,0.00025,2]
[423148718,1779893653000,-713.0,0.00024353,5]
[423148721,1779893653000,-246.39,0.00024658,2]
[423148720,1779893653000,-1000.0,0.00024658,2]
[423148712,1779893653000,-500.0,0.00024,2]
[423148790,1779893654000,-198.52,0.00030284,7]
[423148788,1779893654000,-1580.45858688,0.00030166,2]
[423148794,1779893654000,-150.0,0.00030551,7]
[423148793,1779893654000,-150.0,0.00030551,7]
[423148784,1779893654000,-200.0,0.0003,2]
[423148777,1779893654000,-171.75759006,0.00029826,2]
[423148785,1779893654000,-171.55,0.00030137,31]
[423148776,1779893654000,-159.0,0.00029801,30]
[423148778,1779893654000,-319.79766806,0.00029898,2]
[423148775,1779893654000,-187.0,0.00029801,30]
[423148795,1779893654000,-152.37901821,0.00030551,7]
[423148781,1779893654000,-1522.48289073,0.0002992,2]
[423148786,1779893654000,-200.0,0.00030137,2]
[423148787,1779893654000,-256.67,0.00030137,2]
[423148805,1779893654000,-150.0,0.00030668,7]
[423148791,1779893654000,-150.0,0.00030341,2]
[423148792,1779893654000,-506.0,0.00030397,7]
[423148797,1779893654000,-150.0,0.00030551,7]
[423148802,1779893654000,-150.0,0.00030617,7]
[423148796,1779893654000,-150.0,0.00030551,7]
[423148801,1779893654000,-150.0,0.00030551,7]
[423148803,1779893654000,-150.0,0.00030648,7]
[423148804,1779893654000,-168.1722,0.00030666,30]
[423148800,1779893654000,-150.0,0.00030551,7]
[423148799,1779893654000,-150.0,0.00030551,7]
[423148798,1779893654000,-150.0,0.00030551,7]
[423148806,1779893654000,-150.0,0.00030684,7]
[423148773,1779893654000,-159.0,0.00029801,30]
[423148789,1779893654000,-156.13,0.00030284,30]
[423148780,1779893654000,-188.64555151,0.00029898,7]
[423148754,1779893654000,-150.0,0.00028897,2]
[423148782,1779893654000,-200.0,0.0003,2]
[423148747,1779893654000,-1580.45858688,0.00027621,2]
[423148757,1779893654000,-342.22576209,0.00029233,2]
[423148750,1779893654000,-959.0,0.000281,7]
[423148748,1779893654000,-150.0,0.00027815,30]
[423148749,1779893654000,-600.0,0.00028,2]
[423148751,1779893654000,-159.89883403,0.00028561,2]
[423148755,1779893654000,-959.0,0.00029,7]
[423148752,1779893654000,-506.0,0.00028625,5]
[423148756,1779893654000,-150.0,0.00029206,30]
[423148753,1779893654000,-200.0,0.00028813,30]
[423148758,1779893654000,-21760.83111114,0.00029269,2]
[423148759,1779893654000,-383.57682312,0.000295,2]
[423148769,1779893654000,-155.0,0.00029799,30]
[423148770,1779893654000,-153.0,0.00029799,30]
[423148761,1779893654000,-383.57682312,0.000295,2]
[423148762,1779893654000,-1000.0,0.000297,7]
[423148763,1779893654000,-175.0,0.00029799,30]
[423148760,1779893654000,-383.57682312,0.000295,2]
[423148765,1779893654000,-166.0,0.00029799,30]
[423148766,1779893654000,-165.0,0.00029799,30]
[423148767,1779893654000,-186.0,0.00029799,30]
[423148768,1779893654000,-157.0,0.00029799,30]
[423148764,1779893654000,-175.0,0.00029799,30]
[423148772,1779893654000,-154.0,0.00029801,30]
[423148774,1779893654000,-784.0,0.00029801,30]
[423148771,1779893654000,-282.07,0.000298,2]
[423148783,1779893654000,-200.0,0.0003,2]
[423148779,1779893654000,-210.4189557,0.00029898,5]
[423148807,1779893654000,-2266.19,0.0003069,2]
[423148848,1779893654000,-1705.62659145,0.00031,2]
[423148809,1779893654000,-165.619398,0.000307,2]
[423148840,1779893654000,-150.0,0.00030902,7]
[423148843,1779893654000,-150.0,0.00030939,7]
[423148841,1779893654000,-150.0,0.00030908,7]
[423148839,1779893654000,-150.0,0.00030883,7]
[423148844,1779893654000,-150.0,0.0003095,7]
[423148847,1779893654000,-165.619398,0.00031,2]
[423148849,1779893654000,-150.0,0.00031017,7]
[423148858,1779893654000,-150.0,0.00031136,7]
[423148850,1779893654000,-150.0,0.00031019,7]
[423148851,1779893654000,-150.0,0.00031036,7]
[423148854,1779893654000,-150.0,0.00031087,7]
[423148857,1779893654000,-150.0,0.00031133,7]
[423148852,1779893654000,-330.0,0.00031082,18]
[423148842,1779893654000,-150.0,0.00030928,7]
[423148855,1779893654000,-200.0,0.00031096,2]
[423148856,1779893654000,-150.0,0.00031116,7]
[423148870,1779893654000,-150.0,0.00031305,7]
[423148860,1779893654000,-150.0,0.00031216,7]
[423148859,1779893654000,-150.0,0.0003115,7]
[423148862,1779893654000,-150.0,0.00031253,7]
[423148867,1779893654000,-1277.8153362,0.000313,2]
[423148865,1779893654000,-314.51,0.00031282,7]
[423148861,1779893654000,-150.0,0.0003123,7]
[423148864,1779893654000,-21760.83111114,0.00031281,2]
[423148863,1779893654000,-150.0,0.00031265,7]
[423148868,1779893654000,-165.619398,0.000313,2]
[423148819,1779893654000,-150.0,0.00030785,7]
[423148869,1779893654000,-1705.62659145,0.000313,2]
[423148853,1779893654000,-150.0,0.00031083,7]
[423148836,1779893654000,-169.33457603,0.00030801,30]
[423148866,1779893654000,-150.0,0.00031283,7]
[423148834,1779893654000,-784.0,0.00030801,30]
[423148838,1779893654000,-150.0,0.00030842,7]
[423148808,1779893654000,-1277.8153362,0.000307,2]
[423148811,1779893654000,-343.51518012,0.00030716,2]
[423148810,1779893654000,-1705.62659145,0.000307,2]
[423148812,1779893654000,-215.46156935,0.00030718,2]
[423148813,1779893654000,-160.0,0.0003072,2]
[423148815,1779893654000,-150.0,0.00030729,7]
[423148817,1779893654000,-150.0,0.00030745,7]
[423148814,1779893654000,-208.97895572,0.00030721,2]
[423148816,1779893654000,-150.0,0.00030739,7]
[423148818,1779893654000,-150.0,0.0003075,7]
[423148821,1779893654000,-242.08103259,0.00030789,5]
[423148825,1779893654000,-175.0,0.00030799,30]
[423148822,1779893654000,-420.83791139,0.00030789,5]
[423148820,1779893654000,-479.69650209,0.00030789,2]
[423148823,1779893654000,-377.29110303,0.00030789,7]
[423148826,1779893654000,-166.0,0.00030799,30]
[423148837,1779893654000,-150.0,0.00030817,7]
[423148845,1779893654000,-150.0,0.00030975,7]
[423148846,1779893654000,-1277.8153362,0.00031,2]
[423148835,1779893654000,-187.0,0.00030801,30]
[423148831,1779893654000,-153.0,0.00030799,30]
[423148833,1779893654000,-159.0,0.00030801,30]
[423148829,1779893654000,-157.0,0.00030799,30]
[423148830,1779893654000,-156.74390872,0.00030799,30]
[423148832,1779893654000,-154.0,0.00030801,30]
[423148827,1779893654000,-165.0,0.00030799,30]
[423148824,1779893654000,-175.0,0.00030799,30]
[423148828,1779893654000,-186.0,0.00030799,30]
[423148917,1779893655000,-784.0,0.00031801,30]
[423148908,1779893655000,-175.0,0.00031799,30]
[423148918,1779893655000,-187.0,0.00031801,30]
[423148919,1779893655000,-150.0,0.00031801,7]
[423148911,1779893655000,-173.0,0.00031799,30]
[423148906,1779893655000,-250.0,0.00031735,7]
[423148907,1779893655000,-150.0,0.00031749,7]
[423148905,1779893655000,-150.0,0.00031721,7]
[423148904,1779893655000,-150.0,0.00031715,7]
[423148897,1779893655000,-150.0,0.00031618,7]
[423148901,1779893655000,-150.0,0.00031682,7]
[423148909,1779893655000,-175.0,0.00031799,30]
[423148910,1779893655000,-166.0,0.00031799,30]
[423148921,1779893655000,-150.0,0.00031815,7]
[423148912,1779893655000,-186.0,0.00031799,30]
[423148914,1779893655000,-153.0,0.00031799,30]
[423148915,1779893655000,-154.0,0.00031801,30]
[423148916,1779893655000,-159.0,0.00031801,30]
[423148920,1779893655000,-150.0,0.00031812,7]
[423148923,1779893655000,-150.0,0.00031838,7]
[423148922,1779893655000,-150.0,0.00031824,7]
[423148925,1779893655000,-150.0,0.00031871,7]
[423148926,1779893655000,-150.0,0.00031882,7]
[423148924,1779893655000,-150.0,0.00031858,2]
[423148932,1779893655000,-150.0,0.0003194,2]
[423148900,1779893655000,-150.0,0.00031682,7]
[423148927,1779893655000,-150.0,0.00031907,30]
[423148913,1779893655000,-163.0,0.00031799,30]
[423148903,1779893655000,-1705.62659145,0.000317,2]
[423148895,1779893655000,-150.0,0.00031604,7]
[423148898,1779893655000,-150.0,0.00031623,7]
[423148930,1779893655000,-150.0,0.0003194,2]
[423148871,1779893655000,-515.27277018,0.00031309,2]
[423148873,1779893655000,-150.0,0.00031349,7]
[423148872,1779893655000,-150.0,0.00031327,7]
[423148874,1779893655000,-150.0,0.0003137,7]
[423148878,1779893655000,-484.16206517,0.00031383,5]
[423148876,1779893655000,-639.59533612,0.00031383,2]
[423148881,1779893655000,-233.43335116,0.00031383,7]
[423148882,1779893655000,-565.93665454,0.00031383,7]
[423148877,1779893655000,-213.13909119,0.00031383,7]
[423148875,1779893655000,-155.207636,0.00031383,7]
[423148880,1779893655000,-631.25686709,0.00031383,5]
[423148879,1779893655000,-236.60698335,0.00031383,7]
[423148894,1779893655000,-150.0,0.00031549,7]
[423148893,1779893655000,-150.0,0.00031521,7]
[423148885,1779893655000,-150.0,0.00031424,7]
[423148887,1779893655000,-150.0,0.00031444,7]
[423148884,1779893655000,-150.0,0.00031416,7]
[423148883,1779893655000,-150.0,0.00031399,7]
[423148886,1779893655000,-733.86,0.00031439,7]
[423148890,1779893655000,-150.0,0.00031483,7]
[423148889,1779893655000,-164.0,0.00031476,120]
[423148888,1779893655000,-184.8778881,0.0003145,2]
[423148891,1779893655000,-150.0,0.00031487,7]
[423148892,1779893655000,-150.0,0.00031494,7]
[423148896,1779893655000,-150.0,0.00031616,7]
[423148899,1779893655000,-150.0,0.00031682,7]
[423148902,1779893655000,-1277.8153362,0.000317,2]
[423148929,1779893655000,-254.0,0.0003194,2]
[423148983,1779893655000,-150.0,0.00032306,7]
[423148931,1779893655000,-150.0,0.0003194,2]
[423148960,1779893655000,-213.22249227,0.00032,120]
[423148963,1779893655000,-223.4879805,0.00032,120]
[423148966,1779893655000,-150.0,0.00032015,7]
[423148962,1779893655000,-174.91040486,0.00032,120]
[423148965,1779893655000,-150.0,0.00032005,7]
[423148970,1779893655000,-150.0,0.00032082,7]
[423148972,1779893655000,-150.0,0.00032128,30]
[423148975,1779893655000,-506.0,0.00032168,9]
[423148977,1779893655000,-150.0,0.00032199,7]
[423148973,1779893655000,-150.0,0.00032148,7]
[423148974,1779893655000,-150.0,0.00032159,7]
[423148976,1779893655000,-150.0,0.00032189,7]
[423148980,1779893655000,-150.0,0.00032248,7]
[423148978,1779893655000,-150.0,0.00032215,7]
[423148981,1779893655000,-150.0,0.00032281,7]
[423148971,1779893655000,-150.0,0.00032102,7]
[423148979,1779893655000,-150.0,0.00032248,7]
[423148992,1779893655000,-150.0,0.00032414,7]
[423148982,1779893655000,-150.0,0.00032296,7]
[423148986,1779893655000,-150.0,0.00032348,7]
[423148985,1779893655000,-150.0,0.00032337,7]
[423148989,1779893655000,-173.89,0.00032381,30]
[423148988,1779893655000,-157.77,0.0003236,30]
[423148984,1779893655000,-153.62,0.00032307,30]
[423148987,1779893655000,-150.0,0.0003235,30]
[423148990,1779893655000,-180.0,0.00032383,9]
[423148928,1779893655000,-150.0,0.00031908,7]
[423148968,1779893655000,-150.0,0.00032059,7]
[423148967,1779893655000,-200.0,0.00032055,2]
[423148991,1779893655000,-150.0,0.00032393,7]
[423148961,1779893655000,-188.97933496,0.00032,120]
[423148964,1779893655000,-177.15756749,0.00032,120]
[423148933,1779893655000,-150.0,0.0003194,2]
[423148935,1779893655000,-170.0,0.0003194,2]
[423148936,1779893655000,-150.0,0.00031948,7]
[423148937,1779893655000,-150.0,0.00031955,7]
[423148939,1779893655000,-243.17539936,0.00032,120]
[423148938,1779893655000,-150.0,0.0003198,7]
[423148940,1779893655000,-248.00977717,0.00032,120]
[423148944,1779893655000,-1369.33904097,0.00032,120]
[423148943,1779893655000,-183.34537052,0.00032,120]
[423148942,1779893655000,-1277.8153362,0.00032,2]
[423148941,1779893655000,-757.83022606,0.00032,120]
[423148945,1779893655000,-178.31493801,0.00032,120]
[423148952,1779893655000,-228.59045342,0.00032,120]
[423148934,1779893655000,-150.0,0.0003194,2]
[423148948,1779893655000,-205.77743575,0.00032,120]
[423148958,1779893655000,-237.74569267,0.00032,120]
[423148969,1779893655000,-150.0,0.00032072,7]
[423148959,1779893655000,-179.82120625,0.00032,120]
[423148957,1779893655000,-200.79846749,0.00032,120]
[423148956,1779893655000,-167.31995719,0.00032,120]
[423148947,1779893655000,-207.28396012,0.00032,120]
[423148950,1779893655000,-180.73259399,0.00032,120]
[423148951,1779893655000,-198.52157595,0.00032,120]
[423148946,1779893655000,-1705.62659145,0.00032,2]
[423148953,1779893655000,-723.456095,0.00032,120]
[423148949,1779893655000,-204.70115116,0.00032,120]
[423148954,1779893655000,-178.17649556,0.00032,120]
[423148955,1779893655000,-200.6361202,0.00032,120]
[423149032,1779893656000,-173.89,0.00032773,7]
[423149031,1779893656000,-150.0,0.00032747,7]
[423149030,1779893656000,-1580.45858688,0.0003271,2]
[423149028,1779893656000,-200.0,0.00032704,2]
[423149019,1779893656000,-150.0,0.00032681,7]
[423149029,1779893656000,-348.0,0.00032704,2]
[423149025,1779893656000,-200.0,0.00032704,2]
[423149026,1779893656000,-200.0,0.00032704,2]
[423149022,1779893656000,-200.0,0.00032704,2]
[423149024,1779893656000,-200.0,0.00032704,2]
[423149039,1779893656000,-153.0,0.00032799,30]
[423149033,1779893656000,-150.0,0.00032775,7]
[423149040,1779893656000,-154.0,0.00032801,30]
[423149038,1779893656000,-186.0,0.00032799,30]
[423149036,1779893656000,-175.0,0.00032799,30]
[423149035,1779893656000,-150.0,0.00032793,30]
[423149037,1779893656000,-175.0,0.00032799,30]
[423149042,1779893656000,-784.0,0.00032801,30]
[423149043,1779893656000,-187.0,0.00032801,30]
[423149041,1779893656000,-159.0,0.00032801,30]
[423149044,1779893656000,-150.0,0.00032814,7]
[423149045,1779893656000,-150.0,0.00032814,7]
[423149049,1779893656000,-1940.36,0.00032877,30]
[423149021,1779893656000,-150.0,0.00032695,7]
[423149050,1779893656000,-171.55,0.00032877,120]
[423149034,1779893656000,-150.0,0.00032781,7]
[423149023,1779893656000,-200.0,0.00032704,2]
[423149017,1779893656000,-150.0,0.00032658,7]
[423149020,1779893656000,-150.0,0.00032684,7]
[423149046,1779893656000,-150.0,0.00032814,7]
[423148993,1779893656000,-166.14,0.00032416,30]
[423148996,1779893656000,-173.48,0.00032424,2]
[423148994,1779893656000,-174.12,0.00032417,30]
[423148997,1779893656000,-172.61,0.00032426,30]
[423148998,1779893656000,-168.48,0.00032428,30]
[423149005,1779893656000,-237.942,0.00032474,32]
[423148995,1779893656000,-150.0,0.00032424,7]
[423149000,1779893656000,-150.0,0.00032437,7]
[423149001,1779893656000,-180.65,0.00032442,30]
[423148999,1779893656000,-166.15293373,0.00032428,30]
[423149002,1779893656000,-166.63,0.00032448,30]
[423149027,1779893656000,-200.0,0.00032704,2]
[423149003,1779893656000,-198.52,0.00032456,2]
[423149007,1779893656000,-150.0,0.0003249,7]
[423149006,1779893656000,-150.0,0.00032481,7]
[423149008,1779893656000,-150.0,0.00032516,7]
[423149012,1779893656000,-150.0,0.00032587,7]
[423149010,1779893656000,-150.0,0.00032547,7]
[423149009,1779893656000,-150.0,0.00032541,7]
[423149011,1779893656000,-150.0,0.00032572,30]
[423149014,1779893656000,-287.0,0.00032599,30]
[423149013,1779893656000,-150.0,0.00032599,30]
[423149016,1779893656000,-150.0,0.00032625,7]
[423149015,1779893656000,-150.0,0.00032614,7]
[423149018,1779893656000,-150.0,0.00032672,7]
[423149004,1779893656000,-3806.237,0.00032474,32]
[423149048,1779893656000,-150.0,0.00032873,7]
[423149053,1779893656000,-150.0,0.00032892,7]
[423149051,1779893656000,-150.0,0.00032878,7]
[423149081,1779893656000,-150.0,0.00033146,7]
[423149088,1779893656000,-150.0,0.00033219,30]
[423149084,1779893656000,-150.0,0.00033191,7]
[423149083,1779893656000,-150.0,0.00033169,7]
[423149085,1779893656000,-180.65,0.00033212,2]
[423149086,1779893656000,-150.0,0.00033213,7]
[423149089,1779893656000,-150.0,0.00033231,7]
[423149093,1779893656000,-150.0,0.00033266,7]
[423149091,1779893656000,-150.0,0.00033243,7]
[423149097,1779893656000,-150.0,0.00033346,7]
[423149096,1779893656000,-21760.83111114,0.00033293,2]
[423149090,1779893656000,-150.0,0.00033236,30]
[423149076,1779893656000,-150.0,0.0003308,7]
[423149092,1779893656000,-157.77,0.00033247,7]
[423149095,1779893656000,-174.12,0.0003329,7]
[423149098,1779893656000,-150.0,0.0003336,7]
[423149094,1779893656000,-150.0,0.0003328,7]
[423149101,1779893656000,-1500.0,0.000334,7]
[423149100,1779893656000,-150.0,0.00033379,7]
[423149106,1779893656000,-150.0,0.0003346,7]
[423149102,1779893656000,-150.0,0.00033409,7]
[423149105,1779893656000,-150.0,0.00033458,30]
[423149103,1779893656000,-150.0,0.00033413,7]
[423149104,1779893656000,-150.0,0.00033451,2]
[423149047,1779893656000,-180.65,0.00032827,7]
[423149108,1779893656000,-150.0,0.00033479,7]
[423149099,1779893656000,-150.0,0.00033363,7]
[423149082,1779893656000,-173.89,0.00033165,2]
[423149107,1779893656000,-150.0,0.00033477,7]
[423149080,1779893656000,-150.0,0.00033126,7]
[423149079,1779893656000,-172.61,0.00033123,7]
[423149062,1779893656000,-178.31493801,0.00033,120]
[423149054,1779893656000,-150.0,0.00032947,7]
[423149055,1779893656000,-150.0,0.00032975,7]
[423149059,1779893656000,-757.83022606,0.00033,120]
[423149060,1779893656000,-183.34537052,0.00033,120]
[423149058,1779893656000,-248.00977717,0.00033,120]
[423149056,1779893656000,-500.0,0.00032999,2]
[423149057,1779893656000,-243.17539936,0.00033,120]
[423149061,1779893656000,-1369.33904097,0.00033,120]
[423149063,1779893656000,-180.73259399,0.00033,120]
[423149065,1779893656000,-723.456095,0.00033,120]
[423149067,1779893656000,-200.79846749,0.00033,120]
[423149052,1779893656000,-150.0,0.0003288,7]
[423149068,1779893656000,-174.91040486,0.00033,120]
[423149078,1779893656000,-156.13,0.00033097,2]
[423149087,1779893656000,-245.80659135,0.00033219,30]
[423149077,1779893656000,-150.0,0.00033097,7]
[423149066,1779893656000,-200.6361202,0.00033,120]
[423149075,1779893656000,-150.0,0.00033072,7]
[423149073,1779893656000,-150.0,0.00033015,30]
[423149070,1779893656000,-150.0,0.00033002,7]
[423149064,1779893656000,-198.52157595,0.00033,120]
[423149074,1779893656000,-150.0,0.00033052,7]
[423149071,1779893656000,-150.0,0.00033009,7]
[423149072,1779893656000,-150.0,0.00033013,7]
[423149069,1779893656000,-160.0,0.00033,120]
[423149146,1779893657000,-670.55,0.00033832,7]
[423149147,1779893657000,-9999.99,0.00033844,2]
[423149136,1779893657000,-186.0,0.00033799,30]
[423149141,1779893657000,-784.0,0.00033801,30]
[423149142,1779893657000,-187.0,0.00033801,30]
[423149143,1779893657000,-150.0,0.00033812,7]
[423149144,1779893657000,-172.61,0.0003382,2]
[423149138,1779893657000,-6100.0,0.000338,12]
[423149140,1779893657000,-159.0,0.00033801,30]
[423149137,1779893657000,-153.0,0.00033799,30]
[423149157,1779893657000,-1369.33904097,0.000339,120]
[423149156,1779893657000,-183.34537052,0.000339,120]
[423149148,1779893657000,-150.0,0.00033848,7]
[423149149,1779893657000,-1795.47616726,0.00033864,2]
[423149153,1779893657000,-243.17539936,0.000339,120]
[423149154,1779893657000,-248.00977717,0.000339,120]
[423149152,1779893657000,-502.94,0.00033897,14]
[423149155,1779893657000,-757.83022606,0.000339,120]
[423149151,1779893657000,-150.0,0.00033879,7]
[423149158,1779893657000,-178.31493801,0.000339,120]
[423149161,1779893657000,-200.79846749,0.000339,120]
[423149159,1779893657000,-46247.84946388,0.000339,4]
[423149139,1779893657000,-154.0,0.00033801,30]
[423149150,1779893657000,-834.1206936,0.00033864,2]
[423149145,1779893657000,-150.0,0.00033828,7]
[423149120,1779893657000,-150.0,0.00033612,7]
[423149134,1779893657000,-175.0,0.00033799,30]
[423149111,1779893657000,-173.89,0.00033557,30]